[Event "*** Titled Tuesday Blitz"]
[Site "Chess.com"]
[Date "2020.04.28"]
[Round "6"]
[White "Guenplen"]
[Black "RovenVogel"]
[Result "1-0"]
[WhiteElo "2948"]
[BlackElo "2717"]
[TimeControl "180+1"]
[EndTime "11:04:38 PDT"]
[Termination "Guenplen won by resignation"]

1. Nf3 {[%clk 0:03:00.9]} 1... Nf6 {[%clk 0:02:58.1]} 2. c4 {[%clk 0:03:01]}
2... e6 {[%clk 0:02:57.7]} 3. Nc3 {[%clk 0:03:00.8]} 3... d5 {[%clk 0:02:57.6]}
4. e3 {[%clk 0:03:01.2]} 4... Be7 {[%clk 0:02:57.3]} 5. b3 {[%clk 0:03:01.3]}
5... O-O {[%clk 0:02:56.9]} 6. Bb2 {[%clk 0:03:01.7]} 6... c5 {[%clk 0:02:56.9]}
7. cxd5 {[%clk 0:03:01.3]} 7... Nxd5 {[%clk 0:02:56.5]} 8. h4 {[%clk 0:03:01]}
8... Nc6 {[%clk 0:02:51.4]} 9. Qb1 {[%clk 0:02:59.5]} 9... h6 {[%clk 0:02:24.4]}
10. g4 {[%clk 0:02:54.3]} 10... e5 {[%clk 0:02:15.1]} 11. Rg1 {[%clk 0:02:35.1]}
11... Nxc3 {[%clk 0:02:08.8]} 12. Bxc3 {[%clk 0:02:36]} 12... Bxh4 {[%clk
0:02:00]} 13. Bc4 {[%clk 0:02:26.2]} 13... Qf6 {[%clk 0:01:48.9]} 14. Nxh4
{[%clk 0:02:25.6]} 14... Qxh4 {[%clk 0:01:48.7]} 15. Qe4 {[%clk 0:02:22.1]}
15... Be6 {[%clk 0:01:43.9]} 16. O-O-O {[%clk 0:02:01.5]} 16... Qxf2 {[%clk
0:01:36.7]} 17. g5 {[%clk 0:01:41.6]} 17... h5 {[%clk 0:01:22.5]} 18. Rdf1
{[%clk 0:01:37.4]} 18... Qh2 {[%clk 0:01:10.2]} 19. Rh1 {[%clk 0:01:36.1]} 19...
Qg3 {[%clk 0:00:51.1]} 20. Rxh5 {[%clk 0:01:35.7]} 20... g6 {[%clk 0:00:45.9]}
21. Bxe6 {[%clk 0:01:34.4]} 21... gxh5 {[%clk 0:00:45.3]} 22. Qg6+ {[%clk
0:01:34]} 22... Kh8 {[%clk 0:00:44.9]} 23. Qxh5+ {[%clk 0:01:33.6]} 23... Kg8
{[%clk 0:00:44.3]} 24. Qg6+ {[%clk 0:01:33.6]} 1-0

[Event "*** Titled Tuesday Blitz"]
[Site "Chess.com"]
[Date "2020.04.28"]
[Round "6"]
[White "WinningButNotReally"]
[Black "freshfoodcompany"]
[Result "1-0"]
[WhiteElo "2416"]
[BlackElo "2206"]
[TimeControl "180+1"]
[EndTime "11:04:49 PDT"]
[Termination "WinningButNotReally won by resignation"]

1. Nf3 {[%clk 0:03:00.9]} 1... d5 {[%clk 0:02:59.7]} 2. c4 {[%clk 0:03:00.2]}
2... Nf6 {[%clk 0:02:59.3]} 3. g3 {[%clk 0:03:00.4]} 3... e6 {[%clk 0:02:59.4]}
4. Bg2 {[%clk 0:03:00.6]} 4... dxc4 {[%clk 0:02:59.6]} 5. O-O {[%clk 0:03:00.6]}
5... Bd7 {[%clk 0:02:59.2]} 6. Ne5 {[%clk 0:02:57.9]} 6... Bc6 {[%clk
0:02:58.6]} 7. Nxc6 {[%clk 0:02:54.3]} 7... Nxc6 {[%clk 0:02:57.7]} 8. Qa4
{[%clk 0:02:54.1]} 8... Qd7 {[%clk 0:02:55.3]} 9. Qxc4 {[%clk 0:02:52]} 9... Be7
{[%clk 0:02:44.7]} 10. Nc3 {[%clk 0:02:43.8]} 10... O-O {[%clk 0:02:42.8]} 11.
Rd1 {[%clk 0:02:35.8]} 11... Rfd8 {[%clk 0:02:36]} 12. d4 {[%clk 0:02:31.3]}
12... Bb4 {[%clk 0:02:32.7]} 13. Bxc6 {[%clk 0:02:28.1]} 13... Qxc6 {[%clk
0:02:26.6]} 14. Qxb4 {[%clk 0:02:27.5]} 14... Nd5 {[%clk 0:02:22]} 15. Nxd5
{[%clk 0:02:25.4]} 15... Rxd5 {[%clk 0:02:21]} 16. Qc3 {[%clk 0:02:25]} 16...
Qb6 {[%clk 0:02:18.7]} 17. e4 {[%clk 0:02:23.5]} 17... Rd6 {[%clk 0:02:17.3]}
18. Be3 {[%clk 0:02:23.1]} 18... Rc6 {[%clk 0:02:13.7]} 19. Qb3 {[%clk
0:02:17.7]} 19... Qxb3 {[%clk 0:02:10.7]} 20. axb3 {[%clk 0:02:18.6]} 20... Rc2
{[%clk 0:02:09.4]} 21. Rd2 {[%clk 0:02:18.4]} 21... Rxd2 {[%clk 0:02:08.9]} 22.
Bxd2 {[%clk 0:02:18.3]} 22... a6 {[%clk 0:02:08.8]} 23. Rc1 {[%clk 0:02:15.8]}
23... c6 {[%clk 0:02:06.5]} 24. Ba5 {[%clk 0:02:15]} 24... Kf8 {[%clk
0:02:05.4]} 25. Bb6 {[%clk 0:02:14.6]} 25... f6 {[%clk 0:02:04.6]} 26. f4 {[%clk
0:02:14.5]} 26... Kf7 {[%clk 0:02:03]} 27. Kf2 {[%clk 0:02:14.7]} 27... Re8
{[%clk 0:02:02.2]} 28. Kf3 {[%clk 0:02:13.4]} 28... e5 {[%clk 0:01:59.3]} 29.
fxe5 {[%clk 0:02:10.7]} 29... fxe5 {[%clk 0:01:59.2]} 30. d5 {[%clk 0:02:10.8]}
30... Rc8 {[%clk 0:01:47.7]} 31. Rd1 {[%clk 0:02:09.5]} 31... Ke7 {[%clk
0:01:40.3]} 32. Bc5+ {[%clk 0:01:58.9]} 32... Kd7 {[%clk 0:01:36.7]} 33. Ke3
{[%clk 0:01:58.3]} 33... cxd5 {[%clk 0:01:34]} 34. Rxd5+ {[%clk 0:01:58.3]}
34... Ke6 {[%clk 0:01:32.3]} 35. Rd6+ {[%clk 0:01:57.1]} 35... Kf7 {[%clk
0:01:30]} 36. Rd7+ {[%clk 0:01:56.6]} 36... Ke6 {[%clk 0:01:28.6]} 37. Rd6+
{[%clk 0:01:50.7]} 37... Kf7 {[%clk 0:01:27.5]} 38. b4 {[%clk 0:01:50.6]} 38...
a5 {[%clk 0:01:20]} 39. Rd7+ {[%clk 0:01:49.5]} 39... Ke6 {[%clk 0:01:18.7]} 40.
Rxg7 {[%clk 0:01:46.7]} 40... axb4 {[%clk 0:01:17.4]} 41. Bxb4 {[%clk
0:01:46.1]} 41... Rc2 {[%clk 0:01:16.9]} 42. Bc3 {[%clk 0:01:42.5]} 42... Rxh2
{[%clk 0:01:15.6]} 43. Rxb7 {[%clk 0:01:42.3]} 43... Rg2 {[%clk 0:01:14.1]} 44.
Rb6+ {[%clk 0:01:42.3]} 44... Kd7 {[%clk 0:01:12]} 45. Bxe5 {[%clk 0:01:42.1]}
1-0

[Event "*** Titled Tuesday Blitz"]
[Site "Chess.com"]
[Date "2020.04.28"]
[Round "6"]
[White "AryanTari"]
[Black "praveenb2002"]
[Result "0-1"]
[WhiteElo "2888"]
[BlackElo "2730"]
[TimeControl "180+1"]
[EndTime "11:04:57 PDT"]
[Termination "praveenb2002 won by resignation"]

1. c4 {[%clk 0:03:00.9]} 1... e5 {[%clk 0:02:58.9]} 2. Nc3 {[%clk 0:03:00.8]}
2... Bb4 {[%clk 0:02:58]} 3. Nd5 {[%clk 0:02:59.5]} 3... Bc5 {[%clk 0:02:58.3]}
4. Nf3 {[%clk 0:02:59.6]} 4... c6 {[%clk 0:02:57.9]} 5. Nc3 {[%clk 0:02:59]}
5... Qe7 {[%clk 0:02:58.2]} 6. d4 {[%clk 0:02:33.9]} 6... exd4 {[%clk
0:02:59.1]} 7. Nxd4 {[%clk 0:02:34.7]} 7... d6 {[%clk 0:02:59]} 8. g3 {[%clk
0:02:34.6]} 8... Nf6 {[%clk 0:02:56.4]} 9. Bg2 {[%clk 0:02:32.2]} 9... O-O
{[%clk 0:02:57]} 10. O-O {[%clk 0:02:32]} 10... Rd8 {[%clk 0:02:46.3]} 11. b3
{[%clk 0:02:20.9]} 11... d5 {[%clk 0:02:44.2]} 12. cxd5 {[%clk 0:02:17.6]} 12...
cxd5 {[%clk 0:02:45.1]} 13. Bb2 {[%clk 0:02:11.4]} 13... Nc6 {[%clk 0:02:42.6]}
14. Nxc6 {[%clk 0:02:09.4]} 14... bxc6 {[%clk 0:02:43.5]} 15. Qc2 {[%clk
0:02:09.2]} 15... Bb6 {[%clk 0:02:30.6]} 16. Na4 {[%clk 0:02:06.8]} 16... Bb7
{[%clk 0:02:18.7]} 17. Rac1 {[%clk 0:02:02.4]} 17... Rac8 {[%clk 0:02:17]} 18.
Nc5 {[%clk 0:01:56.5]} 18... Bxc5 {[%clk 0:02:12.2]} 19. Qxc5 {[%clk 0:01:57.4]}
19... Qxe2 {[%clk 0:01:59.2]} 20. Bxf6 {[%clk 0:01:57.2]} 20... gxf6 {[%clk
0:01:59.7]} 21. Qxa7 {[%clk 0:01:51.3]} 21... Qa6 {[%clk 0:01:44.7]} 22. Qd4
{[%clk 0:01:48.1]} 22... c5 {[%clk 0:01:45.1]} 23. Rxc5 {[%clk 0:01:41.4]} 23...
Rxc5 {[%clk 0:01:42.5]} 24. Qxc5 {[%clk 0:01:42.3]} 24... Qxa2 {[%clk
0:01:42.8]} 25. Qe7 {[%clk 0:01:40.1]} 25... Qa8 {[%clk 0:01:39.3]} 26. Qxf6
{[%clk 0:01:36.3]} 26... Re8 {[%clk 0:01:35.4]} 27. Rc1 {[%clk 0:01:23.1]} 27...
d4 {[%clk 0:01:32.4]} 28. Rc7 {[%clk 0:00:51.5]} 28... Re1+ {[%clk 0:01:28.9]}
29. Bf1 {[%clk 0:00:51.9]} 29... Rxf1+ {[%clk 0:01:29.5]} 30. Kxf1 {[%clk
0:00:50.1]} 30... Qa1+ {[%clk 0:01:30.1]} 31. Ke2 {[%clk 0:00:46.5]} 31... d3+
{[%clk 0:01:30.6]} 32. Kxd3 {[%clk 0:00:42.1]} 32... Qxf6 {[%clk 0:01:31.2]} 33.
Rxb7 {[%clk 0:00:41.3]} 33... Qf3+ {[%clk 0:01:31.8]} 0-1

[Event "*** Titled Tuesday Blitz"]
[Site "Chess.com"]
[Date "2020.04.28"]
[Round "6"]
[White "GeorgMeier"]
[Black "olomi007"]
[Result "1-0"]
[WhiteElo "3004"]
[BlackElo "2657"]
[TimeControl "180+1"]
[EndTime "11:04:57 PDT"]
[Termination "GeorgMeier won by resignation"]

1. Nf3 {[%clk 0:03:00.9]} 1... c5 {[%clk 0:02:58]} 2. g3 {[%clk 0:03:01.2]} 2...
Nc6 {[%clk 0:02:57.4]} 3. Bg2 {[%clk 0:03:00.3]} 3... g6 {[%clk 0:02:57.9]} 4.
c3 {[%clk 0:02:59.9]} 4... Bg7 {[%clk 0:02:54.6]} 5. d4 {[%clk 0:03:00.3]} 5...
cxd4 {[%clk 0:02:54.9]} 6. cxd4 {[%clk 0:03:01.2]} 6... d5 {[%clk 0:02:55.2]} 7.
Nc3 {[%clk 0:02:57.7]} 7... Nf6 {[%clk 0:02:54.2]} 8. O-O {[%clk 0:02:57.1]}
8... Bf5 {[%clk 0:02:54.1]} 9. Ne5 {[%clk 0:02:56.5]} 9... Ne4 {[%clk
0:02:53.2]} 10. Nxc6 {[%clk 0:02:56.1]} 10... bxc6 {[%clk 0:02:52.8]} 11. Na4
{[%clk 0:02:56.2]} 11... O-O {[%clk 0:02:48.4]} 12. Be3 {[%clk 0:02:56.2]} 12...
h6 {[%clk 0:02:35.1]} 13. Rc1 {[%clk 0:02:55.8]} 13... Rc8 {[%clk 0:02:31.6]}
14. b3 {[%clk 0:02:54.5]} 14... g5 {[%clk 0:02:30.7]} 15. f3 {[%clk 0:02:46.6]}
15... Nd6 {[%clk 0:02:29]} 16. Qd2 {[%clk 0:02:43.7]} 16... Bg6 {[%clk
0:02:23.4]} 17. Kh1 {[%clk 0:02:43.6]} 17... f5 {[%clk 0:02:21.3]} 18. Nc5
{[%clk 0:02:41.4]} 18... Bf7 {[%clk 0:02:12.1]} 19. Rc2 {[%clk 0:02:37.2]} 19...
Re8 {[%clk 0:01:56.9]} 20. Rfc1 {[%clk 0:02:36.6]} 20... Qc7 {[%clk 0:01:23.5]}
21. Na6 {[%clk 0:02:25.8]} 21... Qb6 {[%clk 0:01:19.6]} 22. Nb4 {[%clk
0:02:25.4]} 22... Qb7 {[%clk 0:00:39.8]} 23. Nxc6 {[%clk 0:02:21.6]} 23... Bg6
{[%clk 0:00:27.2]} 24. Rc5 {[%clk 0:02:16.2]} 24... f4 {[%clk 0:00:19.8]} 25.
gxf4 {[%clk 0:02:15.4]} 25... Nf5 {[%clk 0:00:20.1]} 26. Bf2 {[%clk 0:02:09.8]}
26... gxf4 {[%clk 0:00:19.4]} 27. Qxf4 {[%clk 0:02:10.7]} 27... Bf6 {[%clk
0:00:18.5]} 28. Ne5 {[%clk 0:02:00.3]} 28... Bg5 {[%clk 0:00:18.2]} 29. Qg4
{[%clk 0:02:00.4]} 29... Bh7 {[%clk 0:00:14.8]} 30. f4 {[%clk 0:01:57.9]} 30...
Rxc5 {[%clk 0:00:13.8]} 31. Rxc5 {[%clk 0:01:56.1]} 1-0

[Event "*** Titled Tuesday Blitz"]
[Site "Chess.com"]
[Date "2020.04.28"]
[Round "6"]
[White "m-garcett"]
[Black "pawel83"]
[Result "0-1"]
[WhiteElo "2064"]
[BlackElo "2335"]
[TimeControl "180+1"]
[EndTime "11:05:02 PDT"]
[Termination "pawel83 won by resignation"]

1. e4 {[%clk 0:03:00.9]} 1... e5 {[%clk 0:02:59.3]} 2. Nf3 {[%clk 0:03:00.6]}
2... Nc6 {[%clk 0:02:59.8]} 3. Bb5 {[%clk 0:03:01.2]} 3... a6 {[%clk 0:02:58.5]}
4. Ba4 {[%clk 0:03:00.7]} 4... Nf6 {[%clk 0:02:59]} 5. O-O {[%clk 0:03:00.1]}
5... b5 {[%clk 0:02:58]} 6. Bb3 {[%clk 0:02:59.2]} 6... Be7 {[%clk 0:02:58.5]}
7. Re1 {[%clk 0:02:59.4]} 7... O-O {[%clk 0:02:58.4]} 8. c3 {[%clk 0:02:59.2]}
8... d6 {[%clk 0:02:58.8]} 9. h3 {[%clk 0:02:58.1]} 9... Bb7 {[%clk 0:02:57.1]}
10. d4 {[%clk 0:02:54.6]} 10... Nd7 {[%clk 0:02:54.6]} 11. Nbd2 {[%clk
0:02:49.3]} 11... exd4 {[%clk 0:02:54.5]} 12. cxd4 {[%clk 0:02:48.2]} 12... Bf6
{[%clk 0:02:55.1]} 13. e5 {[%clk 0:02:36.9]} 13... dxe5 {[%clk 0:02:52.2]} 14.
dxe5 {[%clk 0:02:37.8]} 14... Ncxe5 {[%clk 0:02:51.7]} 15. Ne4 {[%clk 0:02:27]}
15... Bxe4 {[%clk 0:02:45.9]} 16. Rxe4 {[%clk 0:02:25.2]} 16... Nxf3+ {[%clk
0:02:45.1]} 17. Qxf3 {[%clk 0:02:24.1]} 17... Nc5 {[%clk 0:02:44.8]} 18. Rg4
{[%clk 0:02:16.3]} 18... Nxb3 {[%clk 0:02:43.9]} 19. axb3 {[%clk 0:02:10.9]}
19... g6 {[%clk 0:02:42.1]} 20. Bh6 {[%clk 0:02:05.3]} 20... Bg7 {[%clk
0:02:40.1]} 21. Bg5 {[%clk 0:02:03.3]} 21... Qd6 {[%clk 0:02:34.9]} 22. Rd1
{[%clk 0:02:01.2]} 22... Qe6 {[%clk 0:02:31.3]} 23. Re4 {[%clk 0:01:57.8]} 23...
Qc6 {[%clk 0:02:29.2]} 24. Qe2 {[%clk 0:01:41.4]} 24... Bxb2 {[%clk 0:02:24.6]}
25. Re7 {[%clk 0:01:24.7]} 25... Bf6 {[%clk 0:02:20.7]} 26. Bxf6 {[%clk
0:01:23.3]} 26... Qxf6 {[%clk 0:02:19.8]} 27. Rxc7 {[%clk 0:01:22.6]} 27... Rfe8
{[%clk 0:02:18.7]} 28. Qf3 {[%clk 0:01:19.1]} 28... Qxf3 {[%clk 0:02:17.3]} 29.
gxf3 {[%clk 0:01:20]} 29... a5 {[%clk 0:02:13.9]} 30. Rdd7 {[%clk 0:01:18.9]}
30... Rf8 {[%clk 0:02:13.4]} 31. Rb7 {[%clk 0:01:18.8]} 31... a4 {[%clk
0:02:13.6]} 32. bxa4 {[%clk 0:01:17.8]} 32... bxa4 {[%clk 0:02:13.3]} 33. Ra7
{[%clk 0:01:15.3]} 33... a3 {[%clk 0:02:10.3]} 34. Rxf7 {[%clk 0:01:13.1]} 34...
Rxa7 {[%clk 0:02:01.9]} 35. Rxa7 {[%clk 0:01:09.7]} 35... Rxf3 {[%clk
0:02:02.3]} 36. Kg2 {[%clk 0:01:09.9]} 36... Rb3 {[%clk 0:02:01.2]} 37. f4
{[%clk 0:01:08.3]} 37... h5 {[%clk 0:01:59]} 38. Kh2 {[%clk 0:01:00.7]} 38... h4
{[%clk 0:01:58.8]} 39. Kg2 {[%clk 0:00:59.9]} 39... Rg3+ {[%clk 0:01:57.3]} 40.
Kh2 {[%clk 0:00:58.7]} 40... Kf8 {[%clk 0:01:57.4]} 41. Ra6 {[%clk 0:00:43.6]}
41... Ke7 {[%clk 0:01:56.3]} 42. Rxg6 {[%clk 0:00:41.4]} 42... Rxg6 {[%clk
0:01:54.5]} 0-1

[Event "*** Titled Tuesday Blitz"]
[Site "Chess.com"]
[Date "2020.04.28"]
[Round "6"]
[White "crazy_but_lazy"]
[Black "AustrianFalcon"]
[Result "0-1"]
[WhiteElo "2353"]
[BlackElo "2564"]
[TimeControl "180+1"]
[EndTime "11:05:05 PDT"]
[Termination "AustrianFalcon won by resignation"]

1. e4 {[%clk 0:03:00.9]} 1... g6 {[%clk 0:02:55.1]} 2. d4 {[%clk 0:02:59.3]}
2... Bg7 {[%clk 0:02:55.2]} 3. Nc3 {[%clk 0:02:53]} 3... d6 {[%clk 0:02:55.2]}
4. Be3 {[%clk 0:02:50.2]} 4... a6 {[%clk 0:02:54.7]} 5. Qd2 {[%clk 0:02:49.9]}
5... b5 {[%clk 0:02:53]} 6. h4 {[%clk 0:02:41.9]} 6... h5 {[%clk 0:02:52.2]} 7.
O-O-O {[%clk 0:02:33.6]} 7... Bb7 {[%clk 0:02:49.8]} 8. Bd3 {[%clk 0:02:33.6]}
8... Nd7 {[%clk 0:02:48.5]} 9. Nf3 {[%clk 0:02:33]} 9... c5 {[%clk 0:02:43.7]}
10. e5 {[%clk 0:01:58.5]} 10... cxd4 {[%clk 0:02:29.4]} 11. e6 {[%clk
0:01:17.9]} 11... Bxf3 {[%clk 0:02:12.5]} 12. gxf3 {[%clk 0:00:44.8]} 12... dxc3
{[%clk 0:02:08.7]} 13. exd7+ {[%clk 0:00:41.6]} 13... Qxd7 {[%clk 0:02:07.7]}
14. Qe2 {[%clk 0:00:41.8]} 14... cxb2+ {[%clk 0:02:03.4]} 15. Kb1 {[%clk
0:00:41.9]} 15... Nf6 {[%clk 0:02:03.8]} 16. Bd4 {[%clk 0:00:34.8]} 16... O-O
{[%clk 0:01:54.4]} 17. f4 {[%clk 0:00:29.3]} 17... Qg4 {[%clk 0:01:47.7]} 18.
Qxe7 {[%clk 0:00:17]} 18... Qxf4 {[%clk 0:01:39.7]} 19. Bxb2 {[%clk 0:00:17.1]}
19... Qb4 {[%clk 0:01:27.1]} 20. a3 {[%clk 0:00:15.8]} 20... Qxb2+ {[%clk
0:01:25.1]} 21. Kxb2 {[%clk 0:00:15.9]} 21... Nd5+ {[%clk 0:01:26]} 0-1

[Event "*** Titled Tuesday Blitz"]
[Site "Chess.com"]
[Date "2020.04.28"]
[Round "6"]
[White "Andrii_Prydun"]
[Black "GM4life"]
[Result "1-0"]
[WhiteElo "2342"]
[BlackElo "2174"]
[TimeControl "180+1"]
[EndTime "11:05:05 PDT"]
[Termination "Andrii_Prydun won by checkmate"]

1. d4 {[%clk 0:02:38]} 1... Nf6 {[%clk 0:02:57.6]} 2. Nc3 {[%clk 0:02:38]} 2...
d5 {[%clk 0:02:56]} 3. Bf4 {[%clk 0:02:38.5]} 3... Bf5 {[%clk 0:02:51.8]} 4. e3
{[%clk 0:02:37.4]} 4... e6 {[%clk 0:02:48.3]} 5. Nf3 {[%clk 0:02:37.9]} 5... Bd6
{[%clk 0:02:46.5]} 6. Ne5 {[%clk 0:02:38.1]} 6... O-O {[%clk 0:02:41.3]} 7. Bd3
{[%clk 0:02:35.6]} 7... Bxd3 {[%clk 0:02:39.9]} 8. cxd3 {[%clk 0:02:33.3]} 8...
c5 {[%clk 0:02:26.9]} 9. dxc5 {[%clk 0:02:32.8]} 9... Bxc5 {[%clk 0:02:23]} 10.
d4 {[%clk 0:02:32.6]} 10... Bd6 {[%clk 0:02:21.7]} 11. O-O {[%clk 0:02:32.4]}
11... Nc6 {[%clk 0:02:16.7]} 12. Nxc6 {[%clk 0:02:31.1]} 12... bxc6 {[%clk
0:02:15.8]} 13. Bxd6 {[%clk 0:02:28]} 13... Qxd6 {[%clk 0:02:16.7]} 14. Na4
{[%clk 0:02:27.5]} 14... e5 {[%clk 0:02:14.2]} 15. Rc1 {[%clk 0:02:22.5]} 15...
Rab8 {[%clk 0:02:10.6]} 16. b3 {[%clk 0:02:13.8]} 16... Rfe8 {[%clk 0:02:07.8]}
17. Rc2 {[%clk 0:02:12.7]} 17... exd4 {[%clk 0:02:01.4]} 18. Qxd4 {[%clk
0:02:11.5]} 18... Rb4 {[%clk 0:01:51.3]} 19. Qxa7 {[%clk 0:02:09.3]} 19... Rh4
{[%clk 0:01:50.6]} 20. g3 {[%clk 0:02:08.1]} 20... Ng4 {[%clk 0:01:50.6]} 21.
Qc5 {[%clk 0:02:00.6]} 21... Qe5 {[%clk 0:01:33.2]} 22. Qd4 {[%clk 0:01:48.7]}
22... Qf5 {[%clk 0:00:39.3]} 23. gxh4 {[%clk 0:01:48.3]} 23... Ne5 {[%clk
0:00:32.6]} 24. f4 {[%clk 0:01:38.1]} 24... Ng6 {[%clk 0:00:13.8]} 25. Rg2
{[%clk 0:01:34.1]} 25... Nxh4 {[%clk 0:00:14.1]} 26. Qxg7# {[%clk 0:01:33.5]}
1-0

[Event "*** Titled Tuesday Blitz"]
[Site "Chess.com"]
[Date "2020.04.28"]
[Round "6"]
[White "Lestofante90"]
[Black "Bulldog167"]
[Result "0-1"]
[WhiteElo "2660"]
[BlackElo "2810"]
[TimeControl "180+1"]
[EndTime "11:05:06 PDT"]
[Termination "Bulldog167 won on time"]

1. d4 {[%clk 0:03:00.9]} 1... Nf6 {[%clk 0:03:00.2]} 2. c4 {[%clk 0:02:58.6]}
2... e6 {[%clk 0:03:00.7]} 3. g3 {[%clk 0:02:59]} 3... d5 {[%clk 0:02:59.2]} 4.
Nf3 {[%clk 0:02:59.5]} 4... Be7 {[%clk 0:02:59.5]} 5. Bg2 {[%clk 0:02:59.8]}
5... O-O {[%clk 0:03:00.2]} 6. Nc3 {[%clk 0:02:59.4]} 6... c6 {[%clk 0:02:52.7]}
7. O-O {[%clk 0:02:58.7]} 7... b6 {[%clk 0:02:52.4]} 8. Ne5 {[%clk 0:02:52.3]}
8... Bb7 {[%clk 0:02:48]} 9. e4 {[%clk 0:02:51.2]} 9... Nbd7 {[%clk 0:02:45.7]}
10. exd5 {[%clk 0:02:47.7]} 10... cxd5 {[%clk 0:02:43.8]} 11. Bf4 {[%clk
0:02:47.7]} 11... Rc8 {[%clk 0:02:19]} 12. Re1 {[%clk 0:02:46.5]} 12... Ba8
{[%clk 0:02:01.7]} 13. cxd5 {[%clk 0:02:38.2]} 13... Nxd5 {[%clk 0:01:55.3]} 14.
Nxd5 {[%clk 0:02:36.2]} 14... Bxd5 {[%clk 0:01:56.2]} 15. Bxd5 {[%clk 0:02:35]}
15... exd5 {[%clk 0:01:57.1]} 16. Qa4 {[%clk 0:02:35.1]} 16... Nxe5 {[%clk
0:01:56.8]} 17. Bxe5 {[%clk 0:02:35.2]} 17... a5 {[%clk 0:01:41.3]} 18. Qb5
{[%clk 0:02:32.8]} 18... Bb4 {[%clk 0:01:39]} 19. Re3 {[%clk 0:02:30.4]} 19...
f6 {[%clk 0:01:35.5]} 20. Bf4 {[%clk 0:02:28.5]} 20... g5 {[%clk 0:01:35.1]} 0-1

[Event "*** Titled Tuesday Blitz"]
[Site "Chess.com"]
[Date "2020.04.28"]
[Round "6"]
[White "annacramling"]
[Black "BakaPG"]
[Result "0-1"]
[WhiteElo "1939"]
[BlackElo "2682"]
[TimeControl "180+1"]
[EndTime "11:05:06 PDT"]
[Termination "BakaPG won on time"]

1. d4 {[%clk 0:03:00.9]} 1... c5 {[%clk 0:02:58.9]} 2. d5 {[%clk 0:03:00.4]}
2... e5 {[%clk 0:02:57.7]} 3. c4 {[%clk 0:02:58.4]} 3... d6 {[%clk 0:02:57.8]}
4. Nc3 {[%clk 0:02:56.8]} 4... Be7 {[%clk 0:02:58.3]} 5. g3 {[%clk 0:02:56.1]}
5... Bg5 {[%clk 0:02:57.5]} 6. e4 {[%clk 0:02:53.1]} 6... Bxc1 {[%clk
0:02:56.3]} 7. Qxc1 {[%clk 0:02:45]} 7... Ne7 {[%clk 0:02:56.6]} 8. Bg2 {[%clk
0:02:42.4]} 8... O-O {[%clk 0:02:55.9]} 9. Nge2 {[%clk 0:02:43]} 9... f5 {[%clk
0:02:55.3]} 10. O-O {[%clk 0:02:43]} 10... f4 {[%clk 0:02:52.6]} 11. gxf4 {[%clk
0:02:42.3]} 11... exf4 {[%clk 0:02:52.7]} 12. Nxf4 {[%clk 0:02:40.5]} 12... Na6
{[%clk 0:02:50.1]} 13. Qd2 {[%clk 0:02:26.2]} 13... Nc7 {[%clk 0:02:48.7]} 14.
Rad1 {[%clk 0:02:16.7]} 14... Qe8 {[%clk 0:02:45.7]} 15. Kh1 {[%clk 0:02:06.8]}
15... Qf7 {[%clk 0:02:42.5]} 16. Ne6 {[%clk 0:01:20]} 16... Bxe6 {[%clk
0:02:39.9]} 17. dxe6 {[%clk 0:01:20.9]} 17... Nxe6 {[%clk 0:02:39.8]} 18. Qxd6
{[%clk 0:01:19.5]} 18... Nf4 {[%clk 0:02:33.7]} 19. Nd5 {[%clk 0:00:59.9]} 19...
Nexd5 {[%clk 0:02:29.7]} 20. cxd5 {[%clk 0:00:45.3]} 20... Rad8 {[%clk
0:02:08.1]} 21. Qe5 {[%clk 0:00:26.8]} 21... Nxg2 {[%clk 0:01:50.5]} 22. Kxg2
{[%clk 0:00:26.8]} 22... Qf3+ {[%clk 0:01:50.2]} 23. Kg1 {[%clk 0:00:26.9]}
23... Rf4 {[%clk 0:01:50.2]} 24. Qe6+ {[%clk 0:00:18.8]} 24... Kh8 {[%clk
0:01:48.2]} 25. h3 {[%clk 0:00:13.5]} 25... Rxe4 {[%clk 0:01:44.7]} 0-1

[Event "*** Titled Tuesday Blitz"]
[Site "Chess.com"]
[Date "2020.04.28"]
[Round "6"]
[White "grzechu96"]
[Black "aa175"]
[Result "1-0"]
[WhiteElo "2603"]
[BlackElo "2454"]
[TimeControl "180+1"]
[EndTime "11:05:14 PDT"]
[Termination "grzechu96 won by resignation"]

1. e4 {[%clk 0:03:00.9]} 1... c5 {[%clk 0:02:59]} 2. Nf3 {[%clk 0:03:01]} 2...
d6 {[%clk 0:02:59]} 3. d4 {[%clk 0:03:01.5]} 3... cxd4 {[%clk 0:02:59.7]} 4.
Nxd4 {[%clk 0:03:02.4]} 4... Nf6 {[%clk 0:03:00.4]} 5. Nc3 {[%clk 0:03:02.4]}
5... a6 {[%clk 0:03:01]} 6. h3 {[%clk 0:03:02.6]} 6... e6 {[%clk 0:03:00.8]} 7.
g4 {[%clk 0:03:02.8]} 7... Be7 {[%clk 0:02:57.9]} 8. g5 {[%clk 0:02:59.1]} 8...
Nfd7 {[%clk 0:02:57.8]} 9. h4 {[%clk 0:02:59.3]} 9... Qc7 {[%clk 0:02:55.7]} 10.
Rh3 {[%clk 0:02:54.2]} 10... Nc6 {[%clk 0:02:53.7]} 11. Be3 {[%clk 0:02:52.7]}
11... b5 {[%clk 0:02:53.2]} 12. Nxc6 {[%clk 0:02:52.2]} 12... Qxc6 {[%clk
0:02:53.1]} 13. Qd4 {[%clk 0:02:52.5]} 13... O-O {[%clk 0:02:18.2]} 14. O-O-O
{[%clk 0:02:44.3]} 14... Nc5 {[%clk 0:02:15]} 15. f4 {[%clk 0:02:39.4]} 15... e5
{[%clk 0:01:46.4]} 16. Qd5 {[%clk 0:02:39.2]} 16... Qc7 {[%clk 0:01:44.4]} 17.
Qxa8 {[%clk 0:02:05.7]} 17... Bxh3 {[%clk 0:01:29.3]} 18. Nd5 {[%clk 0:02:05.9]}
18... Rxa8 {[%clk 0:01:00]} 19. Nxc7 {[%clk 0:02:05.3]} 19... Ra7 {[%clk
0:00:41.6]} 20. fxe5 {[%clk 0:01:44.9]} 20... Rxc7 {[%clk 0:00:02.7]} 21. exd6
{[%clk 0:01:43.9]} 21... Bxd6 {[%clk 0:00:01.7]} 22. Rxd6 {[%clk 0:01:41]} 22...
Nb7 {[%clk 0:00:01.2]} 23. Rxa6 {[%clk 0:01:33.2]} 23... Bxf1 {[%clk 0:00:01.4]}
24. Ra8+ {[%clk 0:01:33]} 1-0